bitfinex/quotes_SOLUSD_20240922
["timestamp","ask_amount","ask_price","bid_price","bid_amount"]
[1726971977114,0.24904939,147.57,147.56,7.0293229]
[1726971977286,0.12355939,147.57,147.56,7.0293229]
[1726971977930,0.12355939,147.57,147.56,30.8062069]
[1726971978237,0.12355939,147.57,147.56,43.64866231]
[1726971978913,0.12355939,147.57,147.56,63.64866231]
[1726971981009,0.12355939,147.57,147.56,50.8062069]
[1726971991020,0.12355939,147.57,147.56,52.16125305]
[1726971991520,0.12355939,147.57,147.56,68.80255305]
[1726971994838,0.12355939,147.57,147.56,67.4475069]
[1726971995826,0.26891532,147.57,147.56,67.4475069]
[1726971996025,0.14535593,147.57,147.56,67.4475069]
[1726971998306,0.14535593,147.57,147.56,48.80248934]
[1726971999312,0.14535593,147.57,147.56,67.4475069]
[1726971999834,0.14535593,147.57,147.56,50.8062069]
[1726972006232,0.14535593,147.57,147.56,30.8062069]
[1726972006421,0.14535593,147.57,147.56,7.0293229]
[1726972012527,0.14535593,147.57,147.56,30.8062069]
[1726972012720,0.14535593,147.57,147.56,32.16129658]
[1726972014716,0.14535593,147.57,147.56,52.16129658]
[1726972015843,0.29394321,147.57,147.56,52.16129658]
[1726972016048,0.14858728,147.57,147.56,50.8062069]
[1726972019623,0.14858728,147.57,147.56,52.16118944]
[1726972019938,0.14858728,147.57,147.56,50.8062069]
[1726972020438,0.14858728,147.57,147.56,52.16118043]
[1726972020742,0.14858728,147.57,147.56,50.8062069]
[1726972021549,0.14858728,147.57,147.56,52.16118074]
[1726972022229,0.14858728,147.57,147.56,50.8062069]
[1726972024428,0.14858728,147.57,147.56,30.8062069]
[1726972024626,0.14858728,147.57,147.56,50.8062069]
[1726972025133,0.14858728,147.57,147.56,65.00363603]
[1726972025854,8.728e-05,147.57,147.56,65.00363603]
[1726972026029,8.728e-05,147.57,147.56,65.12912603]
[1726972026226,7.954e-05,147.59,147.58,27.02688]
[1726972026434,0.13723969,147.61,147.6,44.027864]
[1726972026435,3.436e-05,147.61,147.6,44.027864]
[1726972026643,0.14327935,147.63,147.6,44.027864]
[1726972026644,4.557e-05,147.62,147.61,43.902374]
[1726972027434,4.557e-05,147.62,147.61,44.027864]
[1726972027748,4.557e-05,147.62,147.61,50.802464]
[1726972034358,4.557e-05,147.62,147.61,52.15671112]
[1726972034653,9.169e-05,147.64,147.63,43.902374]
[1726972034843,9.169e-05,147.64,147.63,64.99791318]
[1726972035959,3.399e-05,147.64,147.63,64.99791318]
[1726972036539,8.481e-05,147.65,147.64,43.902374]
[1726972036737,8.481e-05,147.65,147.64,44.027864]
[1726972040438,8.481e-05,147.65,147.64,43.776884]
[1726972043873,1.545e-05,147.66,147.65,0.12549]
[1726972044055,1.545e-05,147.66,147.65,36.74482941]
[1726972044242,0.14323919,147.67,147.65,56.74482941]
[1726972044447,0.12324615,147.68,147.67,0.12549]
[1726972044653,4.615e-05,147.68,147.67,56.87031941]
[1726972047382,8.47e-05,147.71,147.69,0.12549]
[1726972047544,0.1252221,147.73,147.71,20.0]
[1726972047746,0.1252221,147.73,147.71,43.902374]
[1726972048840,0.1252221,147.73,147.71,56.74482941]
[1726972050264,0.1252221,147.73,147.71,58.0981811]
[1726972050969,0.0686071,147.78,147.72,23.902374]
[1726972051152,0.0686071,147.78,147.76,56.61933941]
[1726972055683,0.0686071,147.78,147.76,56.74482941]
[1726972055976,0.50245135,147.77,147.76,56.74482941]
[1726972056759,0.50245135,147.77,147.76,43.776884]
[1726972056965,0.50245135,147.77,147.76,56.61933941]
[1726972065374,0.50245135,147.77,147.76,43.776884]
[1726972065582,0.50245135,147.77,147.76,56.61933941]
[1726972066481,0.50245135,147.77,147.76,20.0]
[1726972068070,0.50245135,147.77,147.76,43.776884]
[1726972068961,0.14730625,147.77,147.76,43.776884]
[1726972069264,0.44451315,147.77,147.76,43.776884]
[1726972074479,0.44451315,147.77,147.73,12.84245541]
[1726972074672,0.44451315,147.77,147.74,20.0]
[1726972075798,0.12876208,147.75,147.74,20.0]
[1726972075972,0.12876208,147.75,147.74,43.776884]
[1726972079581,0.12876208,147.75,147.74,56.61933941]
[1726972081863,0.12876208,147.75,147.74,43.776884]
[1726972083085,0.12876208,147.75,147.74,56.61933941]
[1726972085195,0.12876208,147.75,147.74,20.0]
[1726972085486,0.12876208,147.75,147.68,20.0]
[1726972085684,0.12876208,147.75,147.73,20.0]
[1726972089096,0.12876208,147.75,147.74,1.35351715]
[1726972089700,0.12876208,147.75,147.73,20.0]
[1726972093497,0.12876208,147.75,147.72,12.84245541]
[1726972093498,0.12876208,147.75,147.68,20.0]
[1726972093702,0.12876208,147.75,147.68,12.84245541]
[1726972093892,16.0939,147.74,147.68,12.84245541]
[1726972095507,16.0939,147.74,147.69,23.776884]
[1726972095685,16.0939,147.74,147.7,20.0]
[1726972095886,0.14586413,147.71,147.7,20.0]
[1726972096112,0.14586413,147.71,147.7,21.35386594]
[1726972096907,0.14586413,147.71,147.7,20.0]
[1726972097105,0.14586413,147.71,147.7,57.97320488]
[1726972098702,0.14586413,147.71,147.7,56.61933941]
[1726972099308,0.19054813,147.71,147.7,56.61933941]
[1726972101021,0.19054813,147.71,147.7,43.776884]
[1726972101205,0.19054813,147.71,147.68,43.776884]
[1726972101587,0.19054813,147.71,147.69,12.84245541]
[1726972101924,0.19054813,147.71,147.7,20.0]
[1726972102286,0.19054813,147.71,147.7,43.776884]
[1726972104094,0.19054813,147.71,147.7,45.13064241]
[1726972106007,0.19054813,147.71,147.7,43.776884]
[1726972112417,0.19054813,147.71,147.7,45.13064411]
[1726972114422,0.19054813,147.71,147.7,43.776884]
[1726972115821,0.32657496,147.71,147.7,43.776884]
[1726972116011,0.18071083,147.71,147.7,43.776884]
[1726972119926,0.18071083,147.71,147.7,45.13074299]
[1726972120105,0.18071083,147.71,147.7,43.776884]
[1726972128230,0.18071083,147.71,147.7,45.13068173]
[1726972128438,0.18071083,147.71,147.7,43.776884]
[1726972134336,0.18071083,147.71,147.7,20.0]
[1726972134537,0.18071083,147.71,147.67,20.0]
[1726972134718,0.18071083,147.71,147.68,23.776884]
[1726972135129,0.12549,147.69,147.57,21.696]
[1726972135326,22.257,147.7,147.65,12.84245541]
[1726972135521,22.257,147.7,147.66,1.35425406]
[1726972135730,22.257,147.7,147.65,12.84245541]
[1726972135915,0.13121508,147.67,147.65,12.84245541]
[1726972137532,0.13121508,147.67,147.66,23.776884]
[1726972138931,0.13121508,147.67,147.65,12.84245541]
[1726972140323,0.13121508,147.67,147.66,25.13117861]
[1726972142444,0.13121508,147.67,147.66,23.776884]
[1726972144523,0.13121508,147.67,147.66,25.13105439]
[1726972146749,0.13121508,147.67,147.66,45.13105439]
[1726972148044,0.13121508,147.67,147.66,43.776884]
[1726972150330,0.13121508,147.67,147.66,45.13097253]
[1726972155938,0.26870026,147.67,147.66,45.13097253]
[1726972156140,0.13748518,147.67,147.66,45.13097253]
[1726972159527,0.13748518,147.67,147.66,45.25646253]
[1726972159941,0.13748518,147.67,147.66,43.902374]
[1726972166860,0.13748518,147.67,147.66,43.776884]
[1726972167762,0.13748518,147.67,147.66,20.0]
[1726972168264,0.13748518,147.67,147.66,21.35408308]
[1726972169463,0.13748518,147.67,147.66,45.13096708]
[1726972175862,0.2819513,147.67,147.66,45.13096708]
[1726972176037,0.14446612,147.67,147.66,45.13096708]
[1726972178161,0.14446612,147.67,147.66,43.776884]
[1726972179963,0.14446612,147.67,147.66,45.13080299]
[1726972182344,0.14446612,147.67,147.66,56.61933941]
[1726972189372,0.14446612,147.67,147.66,56.74482941]
[1726972192656,0.14446612,147.67,147.66,43.902374]
[1726972192853,0.14446612,147.67,147.66,56.74482941]
[1726972195882,0.27448593,147.67,147.66,56.74482941]
[1726972196080,0.13001981,147.67,147.66,56.74482941]
[1726972196454,0.14608834,147.68,147.66,58.22420102]
[1726972197174,0.14608834,147.68,147.67,43.776884]
[1726972200475,0.14608834,147.68,147.67,20.0]
[1726972200689,0.14608834,147.68,147.66,20.0]
[1726972200982,0.14608834,147.68,147.67,34.19648979]
[1726972201352,0.14608834,147.68,147.67,32.84245541]
[1726972201973,0.14608834,147.68,147.67,56.61933941]
[1726972206884,4.537e-05,147.69,147.68,44.027864]
[1726972207062,5.068e-05,147.7,147.69,0.12549]
[1726972207373,5.068e-05,147.7,147.69,32.96794541]
[1726972207578,5.068e-05,147.7,147.69,56.87031941]
[1726972210286,5.068e-05,147.7,147.69,56.74482941]
[1726972210466,5.068e-05,147.7,147.69,56.61933941]
[1726972215382,5.068e-05,147.7,147.69,43.776884]
[1726972215670,5.068e-05,147.7,147.69,56.61933941]
[1726972215894,0.14431824,147.7,147.69,56.61933941]
[1726972216092,0.14426756,147.7,147.69,43.776884]
[1726972223201,0.14426756,147.7,147.69,56.61933941]
[1726972231399,6.756e-05,147.7,147.69,56.74482941]
[1726972231615,4.925e-05,147.71,147.7,44.027864]
[1726972232095,4.925e-05,147.71,147.7,56.61933941]
[1726972235885,0.14436785,147.71,147.7,56.61933941]
[1726972236098,0.1443186,147.71,147.7,56.61933941]
[1726972238507,0.1443186,147.71,147.7,58.54791728]
[1726972238807,0.1443186,147.71,147.7,58.79889728]
[1726972239106,1.86e-05,147.71,147.7,58.79889728]
[1726972243490,1.86e-05,147.71,147.7,43.776884]
[1726972243692,1.86e-05,147.71,147.7,32.84245541]
[1726972243903,1.86e-05,147.71,147.7,20.0]
[1726972244205,1.86e-05,147.71,147.7,32.84245541]
[1726972244987,1.86e-05,147.71,147.7,56.61933941]
[1726972251509,1.86e-05,147.71,147.7,43.776884]
[1726972251703,1.86e-05,147.71,147.7,56.61933941]
[1726972255940,0.14308562,147.71,147.7,56.61933941]
[1726972256099,0.14306702,147.71,147.7,56.61933941]
[1726972260319,0.14306702,147.71,147.7,43.776884]
[1726972260614,0.14306702,147.71,147.68,1.92332668]
[1726972260808,0.14306702,147.71,147.65,22.711985]
[1726972261006,0.14306702,147.71,147.7,32.84245541]
[1726972261718,0.14306702,147.71,147.7,56.61933941]
[1726972261897,0.14306702,147.71,147.7,43.776884]
[1726972262317,0.14306702,147.71,147.7,56.61933941]
[1726972267627,0.14306702,147.71,147.7,43.776884]
[1726972267812,0.14306702,147.71,147.7,56.61933941]
[1726972270024,0.14306702,147.71,147.7,43.776884]
[1726972270330,0.14306702,147.71,147.67,12.84245541]
[1726972271223,0.14306702,147.71,147.63,8.29541848]
[1726972271404,0.14306702,147.71,147.63,1.90211848]
[1726972271723,0.14306702,147.71,147.67,20.0]
[1726972272419,0.14306702,147.71,147.66,12.84245541]
[1726972273024,0.14306702,147.71,147.67,23.776884]
[1726972273817,0.14306702,147.71,147.68,20.0]
[1726972275937,0.13331047,147.69,147.68,20.0]
[1726972279936,0.13331047,147.69,147.68,45.13110067]
[1726972280524,0.13142591,147.7,147.68,45.25659067]
[1726972280726,0.13142591,147.7,147.69,56.61933941]
[1726972286906,0.13142591,147.7,147.69,43.776884]
[1726972287133,0.13142591,147.7,147.69,56.61933941]
[1726972290343,2.591e-05,147.7,147.69,56.61933941]
[1726972290522,2.591e-05,147.7,147.69,56.74482941]
[1726972295942,0.13493628,147.7,147.69,56.74482941]
[1726972296243,0.13491037,147.7,147.69,56.74482941]
[1726972300727,1.037e-05,147.7,147.69,56.74482941]
[1726972303748,3.346e-05,147.72,147.71,23.776884]
[1726972304055,0.14573512,147.73,147.72,56.61933941]
[1726972304233,3.512e-05,147.73,147.72,56.61933941]
[1726972306638,3.512e-05,147.73,147.72,43.776884]
[1726972306841,3.512e-05,147.73,147.72,20.0]
[1726972308053,3.512e-05,147.73,147.72,43.776884]
[1726972309654,3.512e-05,147.73,147.72,20.0]
[1726972311551,3.512e-05,147.73,147.71,20.0]
[1726972315442,3.512e-05,147.73,147.72,25.13068326]
[1726972315743,3.512e-05,147.73,147.72,45.13068326]
[1726972315940,0.14169856,147.73,147.72,45.13068326]
[1726972316149,0.14166344,147.73,147.72,45.13068326]
[1726972317753,0.14166344,147.73,147.72,43.776884]
[1726972319247,6.344e-05,147.73,147.72,45.13050376]
[1726972319560,6.188e-05,147.75,147.74,43.902374]
[1726972319752,6.188e-05,147.75,147.74,58.09801242]
[1726972320057,1.775e-05,147.77,147.76,43.902374]
[1726972320370,1.775e-05,147.77,147.76,58.09786253]
[1726972321656,1.775e-05,147.77,147.76,56.74482941]
[1726972322865,1.775e-05,147.77,147.76,56.61933941]
[1726972328487,1.775e-05,147.77,147.76,32.84245541]
[1726972328665,1.775e-05,147.77,147.75,20.0]
[1726972328959,1.775e-05,147.77,147.76,1.35340295]
[1726972329550,1.775e-05,147.77,147.76,37.97274236]
[1726972330141,1.775e-05,147.77,147.76,57.97274236]
[1726972331070,1.775e-05,147.77,147.76,56.61933941]
[1726972331845,1.775e-05,147.77,147.76,20.0]
[1726972332156,1.775e-05,147.77,147.75,23.776884]
[1726972332573,1.775e-05,147.77,147.72,12.84245541]
[1726972332776,1.775e-05,147.77,147.73,20.0]
[1726972333081,1.775e-05,147.77,147.7,12.84245541]
[1726972334262,1.775e-05,147.77,147.71,20.0]
[1726972334749,1.775e-05,147.77,147.73,20.0]
[1726972335174,1.775e-05,147.77,147.76,44.027864]
[1726972335351,0.12407687,147.79,147.76,45.38082706]
[1726972335558,0.12407687,147.79,147.78,56.61933941]
[1726972336077,0.13119837,147.79,147.78,56.61933941]
[1726972338169,0.13119837,147.79,147.78,43.776884]
[1726972338879,0.13119837,147.79,147.77,20.0]
[1726972339381,0.13119837,147.79,147.78,12.84245541]
[1726972339766,0.13119837,147.79,147.78,32.84245541]
[1726972339963,0.13119837,147.79,147.78,56.61933941]
[1726972341172,9.837e-05,147.79,147.78,56.74482941]
[1726972341361,9.837e-05,147.79,147.78,58.09780403]
[1726972341762,9.837e-05,147.79,147.78,56.74482941]
[1726972341964,9.837e-05,147.79,147.78,56.87031941]
[1726972342881,9.837e-05,147.79,147.78,56.61933941]
[1726972343861,9.837e-05,147.79,147.78,56.87031941]
[1726972344067,9.837e-05,147.79,147.78,56.74482941]
[1726972345577,9.837e-05,147.79,147.78,43.776884]
[1726972345754,9.837e-05,147.79,147.78,56.61933941]
[1726972346871,9.837e-05,147.79,147.78,32.84245541]
[1726972348075,9.837e-05,147.79,147.78,56.61933941]
[1726972355960,0.13500081,147.79,147.78,56.61933941]
[1726972356173,0.13490244,147.79,147.78,56.61933941]
[1726972374699,0.13490244,147.79,147.78,43.776884]
[1726972374997,0.13490244,147.79,147.77,20.0]
[1726972376066,0.14196598,147.78,147.77,20.0]
[1726972377597,0.14196598,147.78,147.77,32.84245541]
[1726972381079,0.14196598,147.78,147.77,57.97255156]
[1726972382088,0.14004475,147.79,147.77,57.97255156]
[1726972382286,0.14004475,147.79,147.78,43.776884]
[1726972382788,4.475e-05,147.79,147.78,43.776884]
[1726972390204,4.475e-05,147.79,147.78,45.12984893]
[1726972391396,4.475e-05,147.79,147.78,45.12984859]
[1726972393203,4.475e-05,147.79,147.78,53.41735362]
[1726972396092,0.13520304,147.79,147.78,53.41735362]
[1726972396503,0.13520304,147.79,147.78,52.06438903]
[1726972396704,0.13520304,147.79,147.78,64.90684444]
[1726972398492,0.13520304,147.79,147.78,8.28750503]
[1726972398913,0.13520304,147.79,147.76,12.84245541]
[1726972401195,0.13520304,147.79,147.77,20.0]
[1726972402818,0.13520304,147.79,147.75,20.0]
[1726972403410,0.12549,147.78,147.73,20.0]
[1726972405020,0.25098,147.78,147.7,7.83250503]
[1726972405201,0.12549,147.76,147.7,12.84245541]
[1726972406801,0.12549,147.76,147.71,20.0]
[1726972407006,0.25098,147.76,147.71,20.0]
[1726972407207,0.25098,147.76,147.65,20.2525229]
[1726972407421,0.25098,147.76,147.69,20.0]
[1726972411619,0.25098,147.76,147.7,12.84245541]
[1726972411804,0.25098,147.76,147.71,20.0]
[1726972413117,0.12549,147.76,147.72,12.84245541]
[1726972413627,21.6282,147.77,147.72,12.84245541]
[1726972414621,21.6282,147.77,147.67,20.0]
[1726972414805,0.12549,147.76,147.72,20.0]
[1726972416124,0.13416119,147.73,147.72,20.0]
[1726972418704,16.57029,147.72,147.67,7.04889392]
[1726972418905,23.17119,147.72,147.67,7.04889392]
[1726972419109,23.17119,147.72,147.65,13.09497831]
[1726972420332,23.17119,147.72,147.66,20.0]
[1726972421334,23.17119,147.72,147.66,43.776884]
[1726972423031,23.17119,147.72,147.66,20.0]
[1726972425240,23.17119,147.72,147.65,24.0294069]
[1726972425437,23.17119,147.72,147.65,0.2525229]
[1726972425933,0.12549,147.71,147.65,0.2525229]
[1726972426813,0.12549,147.71,147.65,20.2525229]
[1726972428139,0.12549,147.71,147.65,0.2525229]
[1726972428632,0.25098,147.69,147.65,0.2525229]
[1726972429131,6.6009,147.68,147.65,0.2525229]
[1726972430233,16.4448,147.67,147.65,0.2525229]
[1726972430616,0.25098,147.66,147.65,0.2525229]
[1726972430821,0.25098,147.66,147.6,0.2525229]
[1726972433023,0.25098,147.64,147.6,0.2525229]
[1726972433622,13.0454,147.65,147.6,0.2525229]
[1726972433623,0.25098,147.62,147.6,0.2525229]
[1726972434636,6.52368,147.61,147.6,0.2525229]
[1726972435029,22.02458,147.61,147.6,0.2525229]
[1726972435546,0.25098,147.6,147.56,0.2525229]
[1726972436118,0.13779555,147.57,147.56,0.2525229]
[1726972436451,15.76418555,147.57,147.56,0.2525229]
[1726972436940,15.88967555,147.57,147.56,0.2525229]
[1726972439439,15.76418555,147.57,147.56,0.2525229]
[1726972440044,15.88967555,147.57,147.56,0.2525229]
[1726972441736,0.13779555,147.57,147.56,13.09497831]
[1726972442243,0.13779555,147.57,147.56,56.87186231]
[1726972442450,0.13779555,147.57,147.56,33.09497831]
[1726972447444,0.13779555,147.57,147.56,0.2525229]
[1726972452147,0.13779555,147.57,147.56,45.38471006]
[1726972455757,0.13779555,147.57,147.56,44.0294069]
[1726972456141,0.14778412,147.57,147.56,44.0294069]
[1726972456837,0.14778412,147.57,147.56,45.38459811]
[1726972457053,8.412e-05,147.57,147.56,45.38459811]
[1726972458651,8.412e-05,147.57,147.56,44.0294069]
[1726972459755,2.643e-05,147.58,147.56,45.50978618]
[1726972459956,2.643e-05,147.58,147.57,56.61933941]
[1726972465552,2.643e-05,147.58,147.57,57.97416387]
[1726972466672,9.967e-05,147.6,147.58,43.776884]
[1726972466844,9.967e-05,147.6,147.59,57.97405921]
[1726972467156,5.176e-05,147.61,147.6,44.027864]
[1726972467342,6.704e-05,147.62,147.6,43.902374]
[1726972467546,6.704e-05,147.62,147.61,56.61933941]
[1726972469549,6.704e-05,147.62,147.61,57.97378681]
[1726972470041,5.964e-05,147.64,147.62,43.776884]
[1726972470348,5.964e-05,147.64,147.63,57.97378596]
[1726972470546,5.964e-05,147.64,147.63,56.61933941]
[1726972474164,5.964e-05,147.64,147.63,20.0]
[1726972475664,5.964e-05,147.64,147.58,7.0485858]
[1726972475969,5.964e-05,147.64,147.63,12.84245541]
[1726972476170,0.13746183,147.64,147.63,36.61933941]
[1726972477064,0.13746183,147.64,147.63,56.61933941]
[1726972487777,6.183e-05,147.64,147.63,56.61933941]
[1726972494178,0.13581813,147.65,147.63,57.97363241]
[1726972494385,0.13345599,147.66,147.64,43.776884]
[1726972494549,0.13345599,147.66,147.65,12.84245541]
[1726972494754,0.13345599,147.66,147.65,57.97344367]
[1726972494953,0.14738392,147.67,147.66,43.776884]
[1726972496097,0.12225598,147.68,147.67,43.776884]
[1726972496289,0.12225598,147.68,147.67,56.61933941]
[1726972498357,0.12225598,147.68,147.65,12.84245541]
[1726972498575,0.12225598,147.68,147.67,20.0]
[1726972499181,0.12225598,147.68,147.66,20.0]
[1726972499881,0.12225598,147.68,147.65,12.84245541]
[1726972500460,0.12225598,147.68,147.63,12.84245541]
[1726972501666,0.12225598,147.68,147.64,20.0]
[1726972501884,0.24774598,147.68,147.64,20.0]
[1726972505287,0.24774598,147.68,147.62,12.84245541]
[1726972506074,0.12549,147.67,147.61,12.84245541]
[1726972506280,0.25098,147.67,147.6,20.0]
[1726972507363,0.25098,147.67,147.59,12.84245541]
[1726972508691,0.25098,147.67,147.6,20.0]
[1726972509995,0.25098,147.65,147.59,36.61933941]
[1726972510179,0.25098,147.65,147.59,12.84245541]
[1726972516117,0.25098,147.65,147.59,32.84245541]
[1726972516118,0.1255294,147.6,147.59,32.84245541]
[1726972527117,0.1255294,147.6,147.59,56.61933941]
[1726972528297,2.94e-05,147.6,147.59,56.74482941]
[1726972528508,2.94e-05,147.6,147.59,56.61933941]
[1726972532415,9.09e-06,147.61,147.6,43.776884]
[1726972532618,0.0385129,147.65,147.6,45.1313722]
[1726972532792,0.0385129,147.65,147.64,12.84245541]
[1726972532993,0.0385129,147.65,147.64,56.61933941]
[1726972535614,1.29e-05,147.65,147.64,56.61933941]
[1726972535810,0.12326611,147.66,147.65,43.776884]
[1726972536306,0.12533228,147.66,147.65,43.776884]
[1726972545518,0.12253116,147.67,147.65,45.13093712]
[1726972545734,0.12253116,147.67,147.66,56.61933941]
[1726972546141,0.1428429,147.68,147.66,56.61933941]
[1726972546321,0.1405075,147.7,147.69,43.776884]
[1726972546518,0.1405075,147.7,147.69,45.13075252]
[1726972546818,0.14546438,147.74,147.7,23.776884]
[1726972547124,0.14546438,147.74,147.71,57.97318827]
[1726972547735,0.14546438,147.74,147.71,20.0]
[1726972547953,0.14546438,147.74,147.71,32.84245541]
[1726972553547,0.14546438,147.74,147.71,20.0]
[1726972553721,0.14546438,147.74,147.69,20.0]
[1726972554224,0.14546438,147.74,147.68,12.84245541]
[1726972555846,16.48143901,147.73,147.69,20.0]
[1726972556180,0.12359673,147.7,147.69,20.0]
[1726972556448,0.12359673,147.7,147.65,20.0]
[1726972556649,0.12359673,147.7,147.66,20.0]
[1726972557521,0.12359673,147.7,147.67,12.84245541]
[1726972557747,0.12359673,147.7,147.68,20.0]
[1726972558747,0.12359673,147.7,147.69,32.84245541]
[1726972563848,0.12359673,147.7,147.67,12.84245541]
[1726972564049,0.24908673,147.7,147.6,29.5943087]
[1726972564368,6.38889,147.69,147.63,12.84245541]
[1726972564639,0.12549,147.68,147.63,12.84245541]
[1726972565039,16.48329,147.68,147.63,12.84245541]
[1726972565740,16.48329,147.68,147.64,20.0]
[1726972576355,0.14218754,147.65,147.6,0.2525229]
[1726972576556,0.14218754,147.65,147.64,56.61933941]
[1726972578934,0.14218754,147.65,147.63,20.0]
[1726972582561,0.14218754,147.65,147.63,19.5]
[1726972584462,0.14218754,147.65,147.6,0.2525229]
[1726972586063,0.25098,147.64,147.6,0.2525229]
[1726972591967,0.14218754,147.65,147.61,12.84245541]
[1726972593366,0.12549,147.64,147.61,12.84245541]
[1726972596063,0.25098,147.64,147.61,20.0]
[1726972596259,0.26626544,147.62,147.61,20.0]
[1726972596655,0.26626544,147.62,147.6,0.2525229]
[1726972598051,0.26626544,147.62,147.61,20.0]
[1726972598052,0.14077544,147.62,147.61,20.0]
[1726972603076,0.14077544,147.62,147.6,0.2525229]
[1726972609487,0.14077544,147.62,147.6,13.09497831]
[1726972609658,0.14077544,147.62,147.61,20.0]
[1726972614391,0.14077544,147.62,147.6,0.2525229]
[1726972616090,0.12549,147.66,147.6,0.2525229]
[1726972616387,0.12868948,147.61,147.6,0.2525229]
[1726972619588,0.12868948,147.61,147.6,13.09497831]
[1726972619787,0.12868948,147.61,147.6,33.09497831]
[1726972622071,0.12868948,147.61,147.6,0.2525229]
[1726972624892,0.37966948,147.61,147.6,0.2525229]
[1726972628093,0.12868948,147.61,147.6,0.2525229]
[1726972633699,0.12868948,147.61,147.6,33.09497831]
[1726972636086,0.25098,147.66,147.6,33.09497831]
[1726972636289,0.13141263,147.61,147.6,33.09497831]
[1726972639483,0.13141263,147.61,147.6,13.09497831]
[1726972639683,0.13141263,147.61,147.6,33.09497831]
[1726972648727,0.13141263,147.61,147.6,0.2525229]
[1726972650936,0.13141263,147.61,147.6,13.09497831]
[1726972651235,0.13141263,147.61,147.6,33.09497831]
[1726972655526,0.13141263,147.61,147.6,0.2525229]
[1726972656032,0.25098,147.66,147.6,0.2525229]
[1726972656240,0.14825927,147.61,147.6,0.2525229]
[1726972659528,0.27374927,147.61,147.6,0.2525229]
[1726972659838,0.14825927,147.61,147.6,0.2525229]
[1726972662512,0.14825927,147.61,147.6,13.09497831]
[1726972664235,0.14825927,147.61,147.6,33.09497831]
[1726972668455,0.14825927,147.61,147.6,13.09497831]
[1726972668769,0.14825927,147.61,147.6,33.09497831]
[1726972676064,0.14834544,147.65,147.6,33.09497831]
[1726972676065,0.25098,147.66,147.6,33.09497831]
[1726972676280,0.13770115,147.61,147.6,33.09497831]
[1726972680669,0.13521929,147.63,147.62,6.0349]
[1726972680859,0.14559029,147.67,147.66,43.776884]
[1726972681051,0.13318818,147.69,147.66,84.47681223]
[1726972681255,0.13318818,147.69,147.67,50.548684]
[1726972681464,0.13318818,147.69,147.67,77.05203211]
[1726972681970,7.489e-05,147.68,147.67,77.05203211]
[1726972685974,0.13318818,147.69,147.68,20.0]
[1726972686183,0.12549,147.75,147.69,23.776884]
[1726972686472,0.2525229,147.76,147.74,12.84245541]
[1726972693653,0.2525229,147.76,147.72,20.0]
[1726972693853,0.2525229,147.76,147.75,12.84245541]
[1726972696464,0.37612358,147.76,147.75,12.84245541]
[1726972705601,0.37612358,147.76,147.75,32.84245541]
[1726972705781,6.044e-05,147.77,147.75,49.04215541]
[1726972705983,0.13698527,147.79,147.78,20.0]
[1726972706191,0.48115911,147.8,147.79,23.776884]
[1726972706503,0.48115911,147.8,147.79,43.776884]
[1726972713091,0.48115911,147.8,147.79,21.35299802]
[1726972714704,5.911e-05,147.8,147.79,43.776884]
[1726972714900,0.23385996,147.82,147.8,43.776884]
[1726972715108,0.23385996,147.82,147.8,56.61933941]
[1726972715414,0.23385996,147.82,147.8,57.97216326]
[1726972716389,0.26546623,147.81,147.8,57.97216326]
[1726972718840,0.13180504,147.81,147.8,57.97216326]
[1726972719312,0.13180504,147.81,147.8,56.61933941]
[1726972719893,0.23533989,147.82,147.8,56.61933941]
[1726972720105,0.14213981,147.84,147.82,20.0]
[1726972720417,0.37536313,147.85,147.84,43.776884]
[1726972722313,0.14646799,147.87,147.84,43.776884]
[1726972722314,0.14646799,147.87,147.86,20.0]
[1726972722505,0.14646799,147.87,147.86,45.12913054]
[1726972722690,6.799e-05,147.87,147.86,45.12913054]
[1726972722886,6.168e-05,147.88,147.87,23.776884]
[1726972723098,6.168e-05,147.88,147.87,56.61933941]
[1726972723301,0.0679207,147.91,147.88,20.0]
[1726972723504,0.0679207,147.91,147.88,43.776884]
[1726972724098,0.0679207,147.91,147.88,45.12896659]
[1726972724296,0.0679207,147.91,147.89,32.84245541]
[1726972735915,0.0679207,147.91,147.9,43.776884]
[1726972736116,0.0679207,147.91,147.9,45.12883008]
[1726972736317,0.2031532,147.91,147.9,45.12883008]
[1726972736835,5.32e-05,147.91,147.9,45.12883008]
[1726972737208,0.12564409,147.92,147.9,45.12883008]
[1726972737422,0.12564409,147.92,147.91,56.61933941]
[1726972737628,0.35302811,147.93,147.92,20.0]
[1726972738015,0.35302811,147.93,147.92,32.84245541]
[1726972742028,0.35302811,147.93,147.88,20.0]
[1726972742230,0.12549,147.92,147.89,12.84245541]
[1726972743628,0.12549,147.92,147.9,20.0]
[1726972747341,0.12549,147.92,147.84,1.94727055]
[1726972747342,0.25098,147.92,147.84,1.94727055]
[1726972747547,0.25098,147.92,147.89,20.0]